[Event "WYCC 2018 O14"]
[Site "Halkidiki"]
[Date "2018.10.26"]
[Round "7"]
[White "Popov, Konstantin"]
[Black "Misyura, Ilya"]
[Result "1-0"]
[ECO "E91"]
[WhiteElo "2304"]
[BlackElo "1967"]
[Annotator "NA"]
[PlyCount "83"]
[EventDate "2018.10.20"]
[EventType "swiss"]
[EventCountry "GRE"]
[SourceTitle "playchess.com"]
[Source "ChessBase"]
[SourceQuality "1"]
[TimeControl "40/5400+30:1800+30"]

1. d4 {[%emt 0:00:02]} Nf6 {[%emt 0:00:00]} 2. c4 {[%emt 0:00:24]} g6 {[%emt 0:01:49]} 3. Nc3 {[%emt 0:00:32]} Bg7 {[%emt 0:00:07]} 4. e4 {[%emt 0:00:22]} d6 {[%emt 0:00:06]} 5. Nf3 {[%emt 0:00:23]} O-O {[%emt 0:00:12]} 6. Be2 {[%emt 0:00:54]} c5 {[%emt 0:00:26]} 7. O-O {[%emt 0:01:30]} Nc6 {[%emt 0:00:21]} 8. d5 {[%emt 0:01:50]} Na5 {[%emt 0:00:25]} 9. Qc2 {[%emt 0:02:19]} e5 {[%emt 0:03:34]} 10. dxe6 {[%emt 0:10:35]} Bxe6 {[%emt 0:07:50]} 11. b3 {[%emt 0:08:22]} Nxe4 {[%emt 0:14:40]} 12. Nxe4 {[%emt 0:00:12]} Bxa1 {[%emt 0:00:10]} 13. Bg5 {[%emt 0:00:03]} f6 {[%emt 0:01:21]} 14. Bh6 {[%emt 0:01:53]} Be5 {[%emt 0:01:24]} 15. Nxe5 {[%emt 0:09:10]} dxe5 {[%emt 0:02:39]} 16. Qc3 {[%emt 0:19:55]} b6 {[%emt 0:14:59]} 17. Bxf8 {[%emt 0:08:59]} Kxf8 {[%emt 0:07:13]} 18. Rd1 {[%emt 0:11:42]} Qe7 {[%emt 0:06:10]} 19. Qf3 {[%emt 0:03:37]} Rd8 {[%emt 0:07:47]} 20. Rxd8+ {[%emt 0:01:52]} Qxd8 {[%emt 0:00:04]} 21. Nxf6 {[%emt 0:01:08]} Kg7 {[%emt 0:00:37]} 22. Ne4 {[%emt 0:00:00]} Bf5 {[%emt 0:01:22]} 23. g4 {[%emt 0:08:52]} Bc8 {[%emt 0:09:49]} 24. h4 {[%emt 0:04:53]} Qxh4 {[%emt 0:04:33]} 25. Nd6 {[%emt 0:00:14]} Be6 {[%emt 0:04:18]} 26. Qe3 {[%emt 0:01:18]} Nc6 {[%emt 0:05:56]} 27. Bf3 {[%emt 0:00:57]} Nd4 {[%emt 0:01:25]} 28. Qxe5+ {[%emt 0:00:26]} Kg8 {[%emt 0:00:30]} 29. Bd1 {[%emt 0:00:37]} Qe7 {[%emt 0:00:43]} 30. Ne4 {[%emt 0:00:44]} Nc6 {[%emt 0:01:41]} 31. Qf4 {[%emt 0:00:18]} Kg7 {[%emt 0:00:55]} 32. Bf3 {[%emt 0:00:42]} Nd4 {[%emt 0:00:28]} 33. Qe5+ {[%emt 0:00:13]} Kg8 {[%emt 0:00:41]} 34. Bg2 {[%emt 0:00:20]} Nc6 {[%emt 0:01:06]} 35. Qf4 {[%emt 0:00:55]} Nd4 {[%emt 0:00:20]} 36. Qb8+ {[%emt 0:00:16]} Kg7 {[%emt 0:01:05]} 37. Qe5+ {[%emt 0:00:06]} Kg8 {[%emt 0:00:13]} 38. g5 {[%emt 0:00:38]} Nc6 {[%emt 0:00:46]} 39. Nf6+ {[%emt 0:00:13]} Kf7 {[%emt 0:00:47]} 40. Bxc6 {[%emt 0:00:00]} Qd8 {[%emt 0:00:00]} 41. Be8+ {[%emt 0:02:13]} Ke7 {[%emt 0:01:50]} 42. Bd7 {[%emt 0:00:22]} 1-0

[Event "WYCC 2018 O14"]
[Site "Halkidiki"]
[Date "2018.10.26"]
[Round "7"]
[White "Tadic, Stefan"]
[Black "Dao, Minh Nhat"]
[Result "0-1"]
[ECO "C11"]
[WhiteElo "2295"]
[BlackElo "1956"]
[Annotator "NA"]
[PlyCount "128"]
[EventDate "2018.10.20"]
[EventType "swiss"]
[EventCountry "GRE"]
[SourceTitle "playchess.com"]
[Source "ChessBase"]
[SourceQuality "1"]
[TimeControl "40/5400+30:1800+30"]

1. e4 {[%emt 0:00:00]} e6 {[%emt 0:00:00]} 2. d4 {[%emt 0:00:21]} d5 {[%emt 0:00:04]} 3. Nc3 {[%emt 0:00:49]} Nf6 {[%emt 0:00:59]} 4. e5 {[%emt 0:01:04]} Nfd7 {[%emt 0:00:05]} 5. f4 {[%emt 0:00:57]} c5 {[%emt 0:00:07]} 6. Nf3 {[%emt 0:00:59]} Nc6 {[%emt 0:00:05]} 7. Be3 {[%emt 0:01:38]} cxd4 {[%emt 0:00:33]} 8. Nxd4 {[%emt 0:02:37]} Bc5 {[%emt 0:00:41]} 9. Qd2 {[%emt 0:29:27]} O-O {[%emt 0:05:08]} 10. O-O-O {[%emt 0:02:41]} Nxd4 {[%emt 0:00:25]} 11. Bxd4 {[%emt 0:00:10]} a6 {[%emt 0:00:19]} 12. h4 {[%emt 0:08:00]} b5 {[%emt 0:01:15]} 13. h5 {[%emt 0:05:02]} Qb6 {[%emt 0:19:02]} 14. Bxc5 {[%emt 0:05:36]} Nxc5 {[%emt 0:00:21]} 15. Bd3 {[%emt 0:09:56]} Bd7 {[%emt 0:10:02]} 16. Ne2 {[%emt 0:02:46]} b4 {[%emt 0:04:01]} 17. Nd4 {[%emt 0:05:50]} Rfc8 {[%emt 0:03:59]} 18. f5 {[%emt 0:06:19]} Nxd3+ {[%emt 0:04:02]} 19. Qxd3 {[%emt 0:00:08]} exf5 {[%emt 0:00:50]} 20. Nxf5 {[%emt 0:01:31]} Bxf5 {[%emt 0:00:37]} 21. Qxf5 {[%emt 0:00:12]} Qe6 {[%emt 0:01:35]} 22. Qf4 {[%emt 0:06:02]} Rc4 {[%emt 0:03:11]} 23. Qf3 {[%emt 0:04:05]} Rac8 {[%emt 0:02:38]} 24. Rxd5 {[%emt 0:00:56]} Qc6 {[%emt 0:11:45]} 25. Qd1 {[%emt 0:00:43]} Rxc2+ {[%emt 0:02:52]} 26. Kb1 {[%emt 0:00:04]} Qe8 {[%emt 0:00:53]} 27. Qg4 {[%emt 0:03:33]} Qc6 {[%emt 0:22:14]} 28. Qd1 {[%emt 0:00:04]} Qa8 {[%emt 0:01:26]} 29. Rf1 {[%emt 0:01:03]} h6 {[%emt 0:01:54]} 30. Qf3 {[%emt 0:00:19]} R2c7 {[%emt 0:00:12]} 31. Rfd1 {[%emt 0:00:29]} Re8 {[%emt 0:00:59]} 32. Qg4 {[%emt 0:01:34]} Qc6 {[%emt 0:00:29]} 33. Qe2 {[%emt 0:01:02]} Rce7 {[%emt 0:01:39]} 34. Rd8 {[%emt 0:00:19]} Qe6 {[%emt 0:01:29]} 35. R1d5 {[%emt 0:00:39]} Qf5+ {[%emt 0:00:39]} 36. Ka1 {[%emt 0:00:10]} Qg5 {[%emt 0:00:49]} 37. Kb1 {[%emt 0:00:30]} Qf5+ {[%emt 0:00:19]} 38. Ka1 {[%emt 0:00:03]} Qg5 {[%emt 0:00:23]} 39. Kb1 {[%emt 0:01:17]} Qf5+ {[%emt 0:00:38]} 40. Ka1 {[%emt 0:00:00]} Qg5 {[%emt 0:00:00]} 41. Kb1 {[%emt 0:11:19]} Qf5+ {[%emt 0:05:11]} 42. Ka1 {[%emt 0:01:27]} Rxd8 {[%emt 0:00:56]} 43. Rxd8+ {[%emt 0:00:07]} Kh7 {[%emt 0:00:02]} 44. Rd5 {[%emt 0:10:28]} Rc7 {[%emt 0:01:05]} 45. Qd1 {[%emt 0:01:40]} Qxh5 {[%emt 0:01:23]} 46. Kb1 {[%emt 0:01:17]} Qxd1+ {[%emt 0:04:46]} 47. Rxd1 {[%emt 0:00:01]} Rc5 {[%emt 0:00:08]} 48. Rd7 {[%emt 0:02:18]} Rxe5 {[%emt 0:00:29]} 49. Rxf7 {[%emt 0:00:09]} Rc5 {[%emt 0:00:36]} 50. Rb7 {[%emt 0:00:23]} a5 {[%emt 0:00:30]} 51. a4 {[%emt 0:00:49]} Kg6 {[%emt 0:01:32]} 52. Rb5 {[%emt 0:00:27]} Rg5 {[%emt 0:00:08]} 53. g4 {[%emt 0:02:15]} Kf6 {[%emt 0:06:39]} 54. Kc2 {[%emt 0:00:21]} Ke6 {[%emt 0:01:25]} 55. Rxg5 {[%emt 0:01:16]} hxg5 {[%emt 0:00:26]} 56. Kd2 {[%emt 0:00:20]} Ke5 {[%emt 0:00:31]} 57. Ke3 {[%emt 0:00:07]} b3 {[%emt 0:00:08]} 58. Kf3 {[%emt 0:00:47]} Kd4 {[%emt 0:00:23]} 59. Ke2 {[%emt 0:00:05]} Ke4 {[%emt 0:00:05]} 60. Kd2 {[%emt 0:00:05]} Kf4 {[%emt 0:00:12]} 61. Kc3 {[%emt 0:00:06]} Kxg4 {[%emt 0:00:04]} 62. Kxb3 {[%emt 0:00:05]} Kh3 {[%emt 0:00:10]} 63. Kc4 {[%emt 0:00:03]} g4 {[%emt 0:00:04]} 64. b4 {[%emt 0:00:18]} g3 {[%emt 0:00:15]} 0-1

[Event "WYCC 2018 O14"]
[Site "Halkidiki"]
[Date "2018.10.26"]
[Round "7"]
[White "Cohen Revivo, Shoham"]
[Black "Naqopia, Giorgi"]
[Result "1-0"]
[ECO "C41"]
[WhiteElo "2289"]
[BlackElo "1857"]
[Annotator "NA"]
[PlyCount "67"]
[EventDate "2018.10.20"]
[EventType "swiss"]
[EventCountry "GRE"]
[SourceTitle "playchess.com"]
[Source "ChessBase"]
[SourceQuality "1"]
[TimeControl "40/5400+30:1800+30"]

1. e4 {[%emt 0:00:00]} d6 {[%emt 0:00:00]} 2. d4 {[%emt 0:00:00]} Nf6 {[%emt 0:00:00]} 3. Nc3 {[%emt 0:00:00]} e5 {[%emt 0:00:00]} 4. Nf3 {[%emt 0:00:06]} Nbd7 {[%emt 0:00:00]} 5. Bc4 {[%emt 0:00:16]} Be7 {[%emt 0:00:00]} 6. a4 {[%emt 0:01:02]} O-O {[%emt 0:00:39]} 7. O-O {[%emt 0:00:16]} c6 {[%emt 0:00:06]} 8. a5 {[%emt 0:00:27]} Rb8 {[%emt 0:03:00]} 9. Qe2 {[%emt 0:00:29]} b5 {[%emt 0:00:53]} 10. axb6 {[%emt 0:00:06]} axb6 {[%emt 0:00:04]} 11. d5 {[%emt 0:00:13]} cxd5 {[%emt 0:01:13]} 12. Nxd5 {[%emt 0:00:53]} Bb7 {[%emt 0:02:38]} 13. Rd1 {[%emt 0:03:04]} Nc5 {[%emt 0:15:51]} 14. Nxf6+ {[%emt 0:04:43]} Bxf6 {[%emt 0:00:05]} 15. Bd5 {[%emt 0:00:07]} Bxd5 {[%emt 0:13:09]} 16. Rxd5 {[%emt 0:00:13]} Qc7 {[%emt 0:00:04]} 17. Bd2 {[%emt 0:26:28]} Ne6 {[%emt 0:01:49]} 18. c3 {[%emt 0:00:57]} Ra8 {[%emt 0:05:22]} 19. Rd1 {[%emt 0:03:57]} Ra2 {[%emt 0:00:47]} 20. Be3 {[%emt 0:04:36]} Be7 {[%emt 0:20:38]} 21. Qb5 {[%emt 0:12:55]} Rb8 {[%emt 0:13:44]} 22. Qb3 {[%emt 0:15:25]} Ra5 {[%emt 0:04:03]} 23. Nd2 {[%emt 0:09:30]} b5 {[%emt 0:09:44]} 24. Nb1 {[%emt 0:04:48]} Qc6 {[%emt 0:04:44]} 25. f3 {[%emt 0:00:09]} Nc7 {[%emt 0:00:08]} 26. R5d2 {[%emt 0:02:01]} Ra4 {[%emt 0:02:46]} 27. Na3 {[%emt 0:01:28]} Na6 {[%emt 0:00:50]} 28. Nc2 {[%emt 0:04:46]} b4 {[%emt 0:00:31]} 29. c4 {[%emt 0:01:54]} Ra5 {[%emt 0:00:42]} 30. Rd5 {[%emt 0:01:17]} Rxd5 {[%emt 0:00:33]} 31. exd5 {[%emt 0:00:40]} Qb7 {[%emt 0:00:42]} 32. Ra1 {[%emt 0:00:30]} Bd8 {[%emt 0:00:21]} 33. Qa4 {[%emt 0:00:49]} b3 {[%emt 0:00:08]} 34. Qe8# {[%emt 0:00:08]} 1-0

[Event "WYCC 2018 O14"]
[Site "Halkidiki"]
[Date "2018.10.26"]
[Round "7"]
[White "Gines Esteo, Pedro Antonio"]
[Black "Cardoso Cardoso, Jose Gabriel"]
[Result "1-0"]
[ECO "E15"]
[WhiteElo "2288"]
[BlackElo "2313"]
[Annotator "NA"]
[PlyCount "117"]
[EventDate "2018.10.20"]
[EventType "swiss"]
[EventCountry "GRE"]
[SourceTitle "playchess.com"]
[Source "ChessBase"]
[SourceQuality "1"]
[TimeControl "40/5400+30:1800+30"]

1. d4 {[%emt 0:00:00]} Nf6 {[%emt 0:00:00]} 2. c4 {[%emt 0:00:00]} e6 {[%emt 0:00:45]} 3. Nf3 {[%emt 0:00:03]} b6 {[%emt 0:00:09]} 4. g3 {[%emt 0:00:27]} Ba6 {[%emt 0:00:07]} 5. Qa4 {[%emt 0:00:12]} Bb7 {[%emt 0:00:06]} 6. Bg2 {[%emt 0:00:14]} c5 {[%emt 0:00:07]} 7. dxc5 {[%emt 0:00:35]} bxc5 {[%emt 0:00:08]} 8. O-O {[%emt 0:00:07]} Be7 {[%emt 0:00:09]} 9. Rd1 {[%emt 0:00:27]} O-O {[%emt 0:00:19]} 10. Nc3 {[%emt 0:00:06]} Qb6 {[%emt 0:00:25]} 11. Bf4 {[%emt 0:00:51]} Rd8 {[%emt 0:02:47]} 12. Rd2 {[%emt 0:01:22]} h6 {[%emt 0:08:54]} 13. Rad1 {[%emt 0:01:39]} d6 $11 {[%emt 0:01:55]} 14. Qb3 {[%emt 0:25:19]} Ne8 {[%emt 0:18:24]} 15. Qc2 {[%emt 0:05:44]} Nc6 {[%emt 0:07:46]} 16. b3 {[%emt 0:04:10]} Rac8 {[%emt 0:11:33]} 17. Qb1 {[%emt 0:05:18]} Ba8 {[%emt 0:04:30]} 18. h4 {[%emt 0:08:38]} Qa5 {[%emt 0:01:57]} 19. Qc2 {[%emt 0:13:05]} e5 {[%emt 0:05:59]} 20. Be3 {[%emt 0:02:59]} Nd4 {[%emt 0:00:26]} 21. Qb2 {[%emt 0:02:17]} Nf6 {[%emt 0:00:47]} 22. Ne1 d5 {[%emt 0:12:50]} 23. cxd5 {[%emt 0:10:21]} Nxd5 {[%emt 0:05:55]} 24. Nxd5 {[%emt 0:00:29]} Bxd5 {[%emt 0:00:09]} 25. Bxd5 {[%emt 0:01:57]} Rxd5 {[%emt 0:00:02]} 26. Rc1 {[%emt 0:00:53]} Rcd8 {[%emt 0:01:00]} 27. Qc3 {[%emt 0:05:52]} Qa6 {[%emt 0:03:01]} 28. Qc4 {[%emt 0:02:44]} Qg6 {[%emt 0:02:37]} 29. Kh2 {[%emt 0:00:25]} Qh5 {[%emt 0:02:29]} 30. f3 {[%emt 0:05:34]} Kh8 {[%emt 0:03:01]} 31. Rcd1 {[%emt 0:02:28]} f5 {[%emt 0:01:30]} 32. Ng2 {[%emt 0:01:01]} g5 {[%emt 0:01:47]} 33. Bxd4 {[%emt 0:00:32]} exd4 {[%emt 0:00:24]} 34. e4 fxe4 {[%emt 0:00:55]} 35. fxe4 {[%emt 0:00:58]} gxh4 {[%emt 0:03:03]} 36. Nf4 Qg4 {[%emt 0:00:50]} 37. exd5 {[%emt 0:01:09]} hxg3+ {[%emt 0:00:47]} 38. Kg1 {[%emt 0:00:10]} Qxf4 {[%emt 0:00:18]} 39. Qe2 {[%emt 0:00:50]} Bg5 {[%emt 0:00:51]} 40. Rd3 {[%emt 0:00:00]} Rxd5 {[%emt 0:00:00]} 41. Qe8+ {[%emt 0:03:36]} Kg7 {[%emt 0:02:45]} 42. Rf1 {[%emt 0:03:47]} Rd8 {[%emt 0:04:44]} 43. Qe6 {[%emt 0:03:11]} Rd6 {[%emt 0:04:44]} 44. Qe2 {[%emt 0:11:46]} Qh4 {[%emt 0:00:52]} 45. Qe5+ {[%emt 0:00:49]} Rf6 {[%emt 0:04:29]} 46. Rxg3 {[%emt 0:00:19]} Kf7 {[%emt 0:01:52]} 47. Rxf6+ {[%emt 0:06:23]} Bxf6 {[%emt 0:00:02]} 48. Qd5+ {[%emt 0:00:26]} Ke7 {[%emt 0:01:03]} 49. Qxc5+ {[%emt 0:00:15]} Ke6 {[%emt 0:00:14]} 50. Qc6+ {[%emt 0:01:01]} Ke5 {[%emt 0:01:12]} 51. Qc7+ {[%emt 0:00:55]} Ke6 {[%emt 0:00:48]} 52. Qc4+ {[%emt 0:02:23]} Ke7 {[%emt 0:00:36]} 53. Qe2+ {[%emt 0:00:29]} Kd6 {[%emt 0:00:50]} 54. Kg2 {[%emt 0:01:06]} Be5 {[%emt 0:04:26]} 55. Rg6+ {[%emt 0:00:30]} Kd5 {[%emt 0:00:00]} 56. Qf3+ {[%emt 0:01:25]} Kc5 {[%emt 0:00:06]} 57. Qc6+ {[%emt 0:00:36]} Kb4 {[%emt 0:00:04]} 58. Qc4+ {[%emt 0:00:07]} Ka3 {[%emt 0:00:07]} 59. Qc5+ {[%emt 0:00:21]} 1-0

[Event "WYCC 2018 O14"]
[Site "Halkidiki"]
[Date "2018.10.26"]
[Round "7"]
[White "Kushagra Mohan"]
[Black "Ozenir, Ekin Baris"]
[Result "1-0"]
[ECO "B00"]
[WhiteElo "2283"]
[BlackElo "2293"]
[Annotator "NA"]
[PlyCount "65"]
[EventDate "2018.10.20"]
[EventType "swiss"]
[EventCountry "GRE"]
[SourceTitle "playchess.com"]
[Source "ChessBase"]
[SourceQuality "1"]
[TimeControl "40/5400+30:1800+30"]

1. e4 {[%emt 0:00:00]} Nc6 {[%emt 0:00:11]} 2. Nf3 {[%emt 0:00:00]} d6 {[%emt 0:00:36]} 3. d4 {[%emt 0:00:14]} Nf6 {[%emt 0:00:55]} 4. Nc3 {[%emt 0:00:20]} g6 {[%emt 0:00:42]} 5. d5 {[%emt 0:00:24]} Nb8 {[%emt 0:00:56]} 6. h3 {[%emt 0:00:07]} Bg7 {[%emt 0:00:49]} 7. Bc4 {[%emt 0:00:22]} O-O {[%emt 0:01:42]} 8. O-O {[%emt 0:00:07]} e5 {[%emt 0:04:05] LiveBook: 3 Games} 9. Bg5 {[%emt 0:00:31]} h6 {[%emt 0:01:33]} 10. Be3 {[%emt 0:00:03]} Nbd7 {[%emt 0:02:44]} 11. Qd2 {[%emt 0:04:00]} Kh7 $14 {[%emt 0:01:28]} 12. Ne1 {[%emt 0:12:49]} Ng8 {[%emt 0:02:58]} 13. Nd3 {[%emt 0:04:57]} Ne7 {[%emt 0:05:22]} 14. f4 {[%emt 0:07:18]} exf4 {[%emt 0:02:22]} 15. Rxf4 {[%emt 0:00:26]} g5 {[%emt 0:17:22]} 16. Rf2 {[%emt 0:00:47]} Ng6 {[%emt 0:02:04]} 17. Raf1 {[%emt 0:00:34]} Qe7 {[%emt 0:01:40]} 18. Qe2 {[%emt 0:10:50]} Nde5 {[%emt 0:05:53]} 19. Nxe5 {[%emt 0:02:14]} Nxe5 {[%emt 0:00:14]} 20. Bd3 {[%emt 0:05:40]} g4 {[%emt 0:05:17]} 21. hxg4 {[%emt 0:07:57]} Nxg4 {[%emt 0:03:12]} 22. Rf3 {[%emt 0:02:37]} Nxe3 {[%emt 0:04:20]} 23. Qxe3 {[%emt 0:00:48]} Kg8 {[%emt 0:16:27]} 24. Rg3 {[%emt 0:10:25]} Kh8 {[%emt 0:05:35]} 25. Ne2 {[%emt 0:05:42]} c5 {[%emt 0:04:42]} 26. c3 {[%emt 0:04:04]} Bd7 {[%emt 0:01:57]} 27. Nf4 {[%emt 0:05:26]} Qe5 {[%emt 0:04:56]} 28. Be2 {[%emt 0:02:27]} Kh7 {[%emt 0:02:43]} 29. Nh5 {[%emt 0:03:00]} Bh8 {[%emt 0:00:58]} 30. Rf4 {[%emt 0:00:01]} Rae8 {[%emt 0:00:42]} 31. Rh4 {[%emt 0:00:20]} f5 {[%emt 0:00:34]} 32. Qxh6+ {[%emt 0:00:36]} Kxh6 {[%emt 0:00:26]} 33. Nf6# {[%emt 0:00:04]} 1-0

[Event "WYCC 2018 O14"]
[Site "Halkidiki"]
[Date "2018.10.26"]
[Round "7"]
[White "Subelj, Jan"]
[Black "Horobrijs, Daniils"]
[Result "1-0"]
[ECO "B20"]
[WhiteElo "2281"]
[BlackElo "1918"]
[Annotator "NA"]
[PlyCount "49"]
[EventDate "2018.10.20"]
[EventType "swiss"]
[EventCountry "GRE"]
[SourceTitle "playchess.com"]
[Source "ChessBase"]
[SourceQuality "1"]
[TimeControl "40/5400+30:1800+30"]

1. e4 {[%emt 0:00:00]} c5 {[%emt 0:00:00]} 2. Na3 {[%emt 0:01:14]} Nc6 {[%emt 0:00:29]} 3. Bb5 {[%emt 0:00:33]} g6 {[%emt 0:00:51]} 4. c3 {[%emt 0:02:45]} Nf6 {[%emt 0:00:48]} 5. d3 {[%emt 0:00:31]} Bg7 {[%emt 0:01:33]} 6. f4 {[%emt 0:03:15]} O-O {[%emt 0:02:20]} 7. Nf3 {[%emt 0:00:50]} a6 {[%emt 0:24:11]} 8. Bxc6 {[%emt 0:03:22]} bxc6 {[%emt 0:00:25]} 9. O-O {[%emt 0:04:01]} Qc7 {[%emt 0:07:13]} 10. Qe1 {[%emt 0:04:03]} Nh5 {[%emt 0:13:33]} 11. Qh4 {[%emt 0:17:36]} Bf6 {[%emt 0:13:52]} 12. Ng5 {[%emt 0:02:16]} h6 {[%emt 0:01:02]} 13. g4 {[%emt 0:00:43]} Nxf4 {[%emt 0:01:02]} 14. Bxf4 {[%emt 0:00:17]} hxg5 {[%emt 0:00:12]} 15. Bxg5 {[%emt 0:01:40]} Bxg5 {[%emt 0:00:20]} 16. Qxg5 {[%emt 0:00:10]} d5 {[%emt 0:02:08]} 17. Rae1 {[%emt 0:09:56]} Qd6 {[%emt 0:18:53]} 18. e5 {[%emt 0:05:59]} Qe6 {[%emt 0:00:21]} 19. Rf4 {[%emt 0:00:25]} Kg7 {[%emt 0:00:28]} 20. Nc2 {[%emt 0:00:35]} d4 {[%emt 0:05:26]} 21. cxd4 {[%emt 0:03:42]} Qxa2 {[%emt 0:00:20]} 22. Qxe7 {[%emt 0:00:30]} Qxb2 {[%emt 0:01:45]} 23. Qf6+ {[%emt 0:00:14]} Kg8 {[%emt 0:03:19]} 24. g5 {[%emt 0:00:17]} Qxc2 {[%emt 0:00:56]} 25. Rh4 {[%emt 0:00:08]} 1-0

[Event "WYCC 2018 O14"]
[Site "Halkidiki"]
[Date "2018.10.26"]
[Round "7"]
[White "Gombocz, Ferenc Jr."]
[Black "Murzin, Volodar"]
[Result "0-1"]
[ECO "A15"]
[WhiteElo "2271"]
[BlackElo "2340"]
[Annotator "NA"]
[PlyCount "130"]
[EventDate "2018.10.20"]
[EventType "swiss"]
[EventCountry "GRE"]
[SourceTitle "playchess.com"]
[Source "ChessBase"]
[SourceQuality "1"]
[TimeControl "40/5400+30:1800+30"]

1. c4 {[%emt 0:00:00]} Nf6 {[%emt 0:01:01]} 2. g3 {[%emt 0:00:00]} c6 {[%emt 0:00:15]} 3. Bg2 {[%emt 0:00:02]} d5 {[%emt 0:00:19]} 4. Nf3 {[%emt 0:00:16]} dxc4 {[%emt 0:00:37]} 5. O-O {[%emt 0:01:45]} Nbd7 {[%emt 0:00:17]} 6. Qc2 {[%emt 0:01:08]} Nb6 {[%emt 0:00:15]} 7. a4 {[%emt 0:00:12]} a5 {[%emt 0:00:10]} 8. Na3 {[%emt 0:01:17]} g6 {[%emt 0:00:22]} 9. Nxc4 {[%emt 0:01:07]} Nxc4 {[%emt 0:00:13]} 10. Qxc4 {[%emt 0:00:04]} Bg7 {[%emt 0:00:06]} 11. d3 {[%emt 0:08:32]} Be6 {[%emt 0:08:53]} 12. Qc2 {[%emt 0:03:13]} O-O {[%emt 0:00:27]} 13. Ng5 {[%emt 0:01:57]} Bd7 {[%emt 0:08:58]} 14. Qb3 {[%emt 0:05:09]} b6 {[%emt 0:02:17]} 15. Be3 {[%emt 0:03:35]} h6 {[%emt 0:04:44]} 16. Nf3 {[%emt 0:02:51]} Nd5 {[%emt 0:03:25]} 17. Bd4 {[%emt 0:00:47]} Bxd4 {[%emt 0:03:30]} 18. Nxd4 {[%emt 0:00:07]} e5 {[%emt 0:02:09]} 19. Bxd5 {[%emt 0:10:12]} exd4 {[%emt 0:01:39]} 20. Bg2 {[%emt 0:01:44]} Rc8 {[%emt 0:03:00]} 21. Rac1 {[%emt 0:03:44]} Be6 {[%emt 0:01:30]} 22. Qc2 {[%emt 0:01:16]} c5 {[%emt 0:00:12]} 23. Qd2 {[%emt 0:01:03]} Kg7 {[%emt 0:00:21]} 24. e4 {[%emt 0:01:55]} dxe3 {[%emt 0:10:15]} 25. fxe3 {[%emt 0:00:44]} Qd7 {[%emt 0:01:06]} 26. Qc3+ {[%emt 0:01:33]} Kg8 {[%emt 0:06:20]} 27. Rf6 {[%emt 0:02:51]} Qxa4 {[%emt 0:20:58]} 28. Be4 {[%emt 0:03:42]} Qb4 {[%emt 0:03:24]} 29. Qe5 {[%emt 0:02:33]} Rce8 {[%emt 0:08:34]} 30. Rcf1 {[%emt 0:06:32]} Bf5 {[%emt 0:01:07]} 31. Qc7 {[%emt 0:05:44]} Qxb2 {[%emt 0:05:44]} 32. Rxb6 {[%emt 0:03:48]} Qd2 {[%emt 0:00:10]} 33. Qf4 {[%emt 0:00:27]} Bxe4 {[%emt 0:00:22]} 34. dxe4 {[%emt 0:00:36]} Qd8 {[%emt 0:01:42]} 35. Rb7 {[%emt 0:04:42]} Re7 {[%emt 0:00:25]} 36. Rb5 {[%emt 0:00:10]} Qe8 {[%emt 0:00:54]} 37. Rxc5 {[%emt 0:00:44]} Rxe4 {[%emt 0:00:34]} 38. Qxh6 {[%emt 0:00:46]} Re5 {[%emt 0:01:39]} 39. Rc4 {[%emt 0:03:21]} Rh5 {[%emt 0:00:24]} 40. Qf4 {[%emt 0:00:00]} Rf5 {[%emt 0:00:00]} 41. Qd4 {[%emt 0:03:57]} Rxf1+ {[%emt 0:01:03]} 42. Kxf1 {[%emt 0:00:05]} Qb8 {[%emt 0:03:50]} 43. Kf2 {[%emt 0:02:07]} Qb1 {[%emt 0:01:24]} 44. Qc3 {[%emt 0:02:15]} Rb8 {[%emt 0:02:25]} 45. Rc8+ {[%emt 0:03:30]} Rxc8 {[%emt 0:00:05]} 46. Qxc8+ {[%emt 0:00:04]} Kh7 {[%emt 0:00:03]} 47. Qc4 {[%emt 0:03:19]} Qb2+ {[%emt 0:00:18]} 48. Kf3 {[%emt 0:01:42]} Kg7 {[%emt 0:01:10]} 49. h4 {[%emt 0:00:16]} Qa1 {[%emt 0:00:39]} 50. Kg2 {[%emt 0:03:35]} a4 {[%emt 0:00:23]} 51. h5 {[%emt 0:00:42]} Qb2+ {[%emt 0:02:26]} 52. Kh3 {[%emt 0:01:04]} a3 {[%emt 0:00:40]} 53. hxg6 {[%emt 0:00:34]} Kxg6 {[%emt 0:00:31]} 54. Qa6+ {[%emt 0:05:28]} Kg7 {[%emt 0:00:33]} 55. Qa5 {[%emt 0:00:22]} Kg6 {[%emt 0:04:40]} 56. Qa6+ {[%emt 0:00:35]} Kf5 {[%emt 0:00:21]} 57. Qc8+ {[%emt 0:02:45]} Ke4 {[%emt 0:01:26]} 58. Qe8+ {[%emt 0:00:24]} Kd3 {[%emt 0:00:06]} 59. Qxf7 {[%emt 0:01:02]} a2 {[%emt 0:03:39]} 60. Qd5+ {[%emt 0:00:37]} Kxe3 {[%emt 0:00:10]} 61. Qe6+ {[%emt 0:00:07]} Kf2 {[%emt 0:00:41]} 62. Qf5+ {[%emt 0:11:54]} Kg1 {[%emt 0:00:07]} 63. Qc5+ {[%emt 0:00:59]} Qf2 {[%emt 0:00:07]} 64. Qe5 {[%emt 0:00:52]} Qf1+ {[%emt 0:00:16]} 65. Kg4 {[%emt 0:00:13]} a1=Q {[%emt 0:00:10]} 0-1

[Event "WYCC 2018 O14"]
[Site "Halkidiki"]
[Date "2018.10.26"]
[Round "7"]
[White "Srihari L R"]
[Black "Krastev, Alexander"]
[Result "1/2-1/2"]
[ECO "A48"]
[WhiteElo "2170"]
[BlackElo "2298"]
[Annotator "NA"]
[PlyCount "84"]
[EventDate "2018.10.20"]
[EventType "swiss"]
[EventCountry "GRE"]
[SourceTitle "playchess.com"]
[Source "ChessBase"]
[SourceQuality "1"]
[TimeControl "40/5400+30:1800+30"]

1. d4 {[%emt 0:00:00]} Nf6 {[%emt 0:00:00]} 2. Nf3 {[%emt 0:00:04]} g6 {[%emt 0:00:21]} 3. Bg5 {[%emt 0:04:00]} Bg7 {[%emt 0:01:47]} 4. Nbd2 {[%emt 0:00:43]} c5 {[%emt 0:03:47] LiveBook: 478 Games} 5. c3 {[%emt 0:02:02]} cxd4 {[%emt 0:05:53]} 6. cxd4 {[%emt 0:01:14]} Nc6 {[%emt 0:01:47]} 7. Bxf6 {[%emt 0:15:32]} Bxf6 {[%emt 0:00:19]} 8. d5 {[%emt 0:00:08]} Ne5 {[%emt 0:10:10]} 9. Nxe5 {[%emt 0:03:10]} Bxe5 {[%emt 0:00:27]} 10. Nc4 {[%emt 0:00:22]} Bg7 $11 {[%emt 0:01:22]} 11. a4 {[%emt 0:01:32]} d6 {[%emt 0:04:34]} 12. e4 {[%emt 0:00:11]} O-O {[%emt 0:00:13]} 13. Bd3 {[%emt 0:00:05]} b6 {[%emt 0:01:11]} 14. O-O {[%emt 0:02:40]} Bd7 {[%emt 0:07:54]} 15. Qe2 {[%emt 0:16:25]} Qb8 {[%emt 0:03:09]} 16. Ra2 {[%emt 0:12:07]} Rc8 {[%emt 0:04:02]} 17. b3 {[%emt 0:00:50]} Qc7 {[%emt 0:07:54]} 18. Rc2 {[%emt 0:01:14]} Qd8 {[%emt 0:00:44]} 19. Rfc1 {[%emt 0:07:09]} Bh6 {[%emt 0:20:39]} 20. Ra1 {[%emt 0:05:04]} Rc7 {[%emt 0:04:57]} 21. g3 {[%emt 0:03:05]} Rac8 {[%emt 0:01:26]} 22. f4 {[%emt 0:01:10]} a6 {[%emt 0:02:21]} 23. Rac1 {[%emt 0:04:55]} b5 {[%emt 0:01:46]} 24. axb5 {[%emt 0:00:15]} axb5 {[%emt 0:00:17]} 25. Na3 {[%emt 0:00:37]} Rxc2 {[%emt 0:00:24]} 26. Rxc2 {[%emt 0:00:12]} Rxc2 {[%emt 0:00:10]} 27. Nxc2 {[%emt 0:00:14]} Bg7 {[%emt 0:01:47]} 28. Nb4 {[%emt 0:04:51]} Qc7 {[%emt 0:12:49]} 29. Nc6 {[%emt 0:00:12]} Bxc6 {[%emt 0:00:15]} 30. dxc6 {[%emt 0:00:06]} Qxc6 {[%emt 0:00:07]} 31. Bxb5 {[%emt 0:00:03]} Qc1+ {[%emt 0:00:14]} 32. Kg2 {[%emt 0:00:06]} Bd4 {[%emt 0:00:49]} 33. Bc4 {[%emt 0:00:16]} h5 {[%emt 0:00:54]} 34. Qf1 {[%emt 0:00:38]} Qe3 {[%emt 0:00:30]} 35. Qf3 {[%emt 0:02:46]} Qd2+ {[%emt 0:01:14]} 36. Qe2 {[%emt 0:00:14]} Qc1 {[%emt 0:00:50]} 37. Qf1 {[%emt 0:00:42]} Qc3 {[%emt 0:00:23]} 38. Qf3 {[%emt 0:00:16]} Qb2+ {[%emt 0:00:56]} 39. Qe2 {[%emt 0:00:10]} Qa1 {[%emt 0:00:12]} 40. Qf1 {[%emt 0:00:00]} Qa2+ {[%emt 0:00:00]} 41. Qe2 {[%emt 0:00:37]} Qa7 {[%emt 0:05:27]} 42. Qf3 {[%emt 0:01:28]} Qa2+ 1/2-1/2